bitfinex/quotes_ETHUSD_20260213
["timestamp","ask_amount","ask_price","bid_price","bid_amount"]
[1771006912377,0.002,2057.1,2056.5,0.46202478]
[1771006912593,0.002,2057.4,2056.7,0.46202478]
[1771006913075,1e-08,2057.6,2056.7,0.46202478]
[1771006913288,0.002,2057.7,2056.8,0.46202478]
[1771006913577,0.002,2057.7,2057.0,0.46202478]
[1771006914283,0.002,2057.7,2056.9,2.014]
[1771006914690,0.002,2057.7,2057.0,1.21536217]
[1771006915194,0.4683483,2057.7,2057.0,1.21536217]
[1771006915785,0.002,2057.7,2057.0,2.35236217]
[1771006916699,0.002,2057.7,2057.0,2.81438695]
[1771006917177,0.002,2057.7,2057.0,2.35236217]
[1771006918491,0.002,2057.7,2057.0,2.81438695]
[1771006918681,0.002,2058.0,2057.2,0.46202478]
[1771006920611,0.002,2058.0,2057.3,1.21518495]
[1771006920773,0.002,2058.0,2057.4,2.47602478]
[1771006920969,0.002,2058.0,2057.4,2.014]
[1771006922508,0.002,2057.8,2057.5,0.47528493]
[1771006922669,0.002,2058.3,2057.6,1.21500777]
[1771006923891,0.002,2058.5,2057.7,0.47528493]
[1771006924079,0.002,2058.5,2057.8,1.14]
[1771006924696,0.002,2058.5,2057.9,1.21483065]
[1771006925280,0.002,2058.5,2057.9,1.69011558]
[1771006926005,0.47065842,2058.5,2057.9,1.21483065]
[1771006926304,0.47065842,2058.5,2058.0,1.141]
[1771006927689,0.002,2058.5,2058.1,1.21471259]
[1771006928421,0.47065842,2058.5,2058.0,2.35577088]
[1771006928617,1.68514244,2058.5,2058.0,2.35577088]
[1771006928824,0.46865842,2058.4,2058.0,1.141]
[1771006929108,0.46865842,2058.4,2058.0,2.35575457]
[1771006929720,1.68320111,2058.4,2058.0,1.141]
[1771006930008,0.46865842,2058.3,2058.0,1.141]
[1771006930309,0.46865842,2058.3,2057.7,1.21490773]
[1771006930500,0.46865842,2058.3,2057.6,2.09098206]
[1771006931807,0.46865842,2058.2,2057.6,2.09098206]
[1771006932014,0.46865842,2058.2,2057.6,0.876]
[1771006932175,0.46865842,2058.2,2057.5,1.143]
[1771006932376,0.46865842,2058.2,2057.4,1.21511968]
[1771006933906,0.46865842,2058.0,2057.3,4.86072806]
[1771006934514,0.46865842,2058.0,2057.3,1.21518495]
[1771006934679,0.46865842,2058.0,2057.2,2.35920053]
[1771006935280,0.46865842,2058.0,2057.8,0.001]
[1771006935483,0.46865842,2058.0,2057.2,2.35920053]
[1771006936409,0.46865842,2057.8,2057.2,2.35923481]
[1771006937907,0.46865842,2057.8,2057.2,2.30923481]
[1771006939101,1.68346608,2058.0,2057.2,2.30923481]
[1771006939297,1.68346608,2058.0,2057.2,1.094]
[1771006939298,0.46865842,2057.9,2057.2,1.094]
[1771006939618,0.46865842,2057.9,2057.2,2.30924122]
[1771006939796,0.46865842,2057.9,2057.2,1.094]
[1771006940499,0.46865842,2057.9,2057.2,1.21521024]
[1771006940500,0.46865842,2057.7,2057.2,1.21521024]
[1771006940921,1.21487725,2057.9,2057.2,1.21521024]
[1771006940922,0.46865842,2057.9,2057.2,1.21521024]
[1771006942520,0.46865842,2057.9,2056.4,1.69100171]
[1771006942521,0.46865842,2057.7,2056.4,1.69100171]
[1771006943138,0.46865842,2057.7,2056.4,1.21571678]
[1771006943818,0.46865842,2057.7,2056.2,1.2167924]
[1771006944140,0.46865842,2057.7,2056.2,1.69207733]
[1771006944451,0.46865842,2057.5,2056.4,1.21571678]
[1771006944860,0.46865842,2057.5,2056.3,1.146]
[1771006945025,0.46865842,2057.5,2056.3,2.36176718]
[1771006945446,0.46865842,2057.3,2056.2,0.001]
[1771006945627,28.20263424,2057.4,2056.2,0.001]
[1771006945628,0.46865842,2057.1,2056.2,0.001]
[1771006946540,1.21536217,2057.0,2056.2,0.001]
[1771006947815,1.21536217,2057.0,2056.5,0.001]
[1771006948023,0.46865842,2056.9,2056.5,0.001]
[1771006948435,1.21548035,2056.8,2056.5,0.001]
[1771006948636,1.68413877,2056.8,2056.5,0.001]
[1771006949833,1.68413877,2056.8,2056.3,0.001]
[1771006951332,1.66814905,2057.1,2056.3,0.001]
[1771006953344,1.66814905,2057.1,2056.2,0.49305859]
[1771006953648,1.66814905,2057.1,2056.3,1.2157759]
[1771006953947,1.66797184,2057.4,2056.4,0.49205859]
[1771006954651,1.083,2057.5,2056.6,0.49205859]
[1771006954953,0.002,2057.7,2056.6,0.49205859]
[1771006955458,0.002,2057.7,2056.8,0.49205859]
[1771006956222,0.002,2057.7,2056.9,0.876]
[1771006956438,0.002,2057.7,2057.0,1.142]
[1771006956961,0.002,2057.7,2057.0,1.63405859]
[1771006957629,0.002,2057.7,2057.0,2.35732061]
[1771006960338,0.49709281,2057.6,2056.4,4.86215782]
[1771006960544,0.49709281,2057.2,2056.4,0.001]
[1771006960863,0.49709281,2057.0,2056.0,0.001]
[1771006961163,0.49709281,2057.0,2056.1,0.001]
[1771006961474,1.03460798,2056.9,2056.1,0.001]
[1771006961635,1.03460798,2056.8,2056.1,0.001]
[1771006961835,1.03460798,2056.7,2056.1,0.001]
[1771006962153,1.03460798,2056.6,2056.1,0.001]
[1771006962335,0.49709281,2056.9,2056.1,0.001]
[1771006962336,1.21553945,2056.7,2056.1,0.001]
[1771006962540,1.03472273,2056.6,2056.1,0.001]
[1771006962734,1.03471427,2056.5,2056.1,0.001]
[1771006962950,1.21553945,2056.7,2056.1,0.001]
[1771006963157,1.03469707,2056.6,2056.1,0.001]
[1771006963355,1.21553945,2056.7,2056.1,0.001]
[1771006963635,4.86215782,2056.8,2056.1,0.001]
[1771006963636,1.21552421,2056.8,2056.1,0.001]
[1771006963837,1.03466994,2056.7,2056.1,0.001]
[1771006964166,1.21552421,2056.8,2056.1,0.001]
[1771006964350,1.03464273,2056.7,2056.1,0.001]
[1771006964536,1.21554052,2056.7,2056.1,0.001]
[1771006966464,0.49709281,2057.0,2056.1,0.001]
[1771006966465,1.21542126,2056.9,2056.1,0.001]
[1771006966672,1.03497823,2056.8,2056.1,0.001]
[1771006966849,1.03497823,2056.7,2056.1,0.001]
[1771006967046,1.03497246,2056.6,2056.1,0.001]
[1771006967363,1.21542126,2056.9,2056.1,0.001]
[1771006967569,1.03507531,2056.8,2056.1,0.001]
[1771006967739,1.03507531,2056.7,2056.1,0.001]
[1771006967942,1.03507531,2056.6,2056.1,0.001]
[1771006968165,1.21542126,2056.9,2056.1,0.001]
[1771006968340,1.03507588,2056.8,2056.1,0.001]
[1771006968667,2.25067315,2056.7,2056.1,0.001]
[1771006968868,1.21559727,2056.7,2056.1,0.001]
[1771006970767,1.21542126,2056.9,2056.1,0.001]
[1771006970971,1.03598244,2056.8,2056.1,0.001]
[1771006971151,1.03598244,2056.7,2056.1,0.001]
[1771006971344,1.03623096,2056.6,2056.1,0.001]
[1771006971648,1.71248454,2057.0,2056.1,0.001]
[1771006971967,1.03631681,2056.9,2056.1,0.46473229]
[1771006972163,1.21539173,2057.0,2056.1,0.46473229]
[1771006972342,1.03623898,2056.9,2056.1,0.46473229]
[1771006972538,1.21535002,2057.1,2056.1,0.46473229]
[1771006972742,1.03663052,2057.0,2056.3,1.2157759]
[1771006972947,1.21535002,2057.1,2056.4,1.139]
[1771006973158,1.03665771,2057.0,2056.4,1.139]
[1771006973349,1.21535002,2057.1,2056.4,1.139]
[1771006973554,1.0365758,2057.0,2056.4,1.139]
[1771006973756,1.21535002,2057.1,2056.4,1.139]
[1771006973955,1.03644636,2057.0,2056.4,1.139]
[1771006974165,1.0365662,2056.9,2056.4,1.139]
[1771006974354,8.09237448,2057.2,2056.4,1.139]
[1771006974556,1.03653702,2057.1,2056.4,1.139]
[1771006974758,2.25192572,2057.0,2056.4,2.35467142]
[1771006974953,1.2153887,2057.0,2056.4,2.35467142]
[1771006975171,1.03639769,2056.9,2056.4,2.35467142]
[1771006975365,1.2153887,2057.0,2056.4,1.139]
[1771006975683,1.03651295,2056.9,2056.4,1.139]
[1771006975877,1.2153887,2057.0,2056.3,1.21677254]
[1771006976071,1.03650718,2056.9,2056.4,1.14]
[1771006976275,1.2153887,2057.0,2056.4,1.14]
[1771006976474,1.03651729,2056.9,2056.4,1.14]
[1771006976667,1.2153887,2057.0,2056.4,1.14]
[1771006976867,1.21534698,2057.1,2056.4,2.35569957]
[1771006977068,1.03652606,2057.0,2056.4,2.35569957]
[1771006977248,1.21529192,2057.2,2056.4,2.81943186]
[1771006977452,1.21512588,2057.4,2056.5,0.46373229]
[1771006977770,1.03666049,2057.3,2056.5,0.46373229]
[1771006977975,1.03666049,2057.2,2056.5,0.46373229]
[1771006978148,1.21512588,2057.4,2056.5,0.46373229]
[1771006978344,1.03660124,2057.3,2056.5,0.46373229]
[1771006978557,1.03660124,2057.2,2056.5,0.46373229]
[1771006978752,1.71420508,2057.5,2056.6,1.21559856]
[1771006978958,1.71420508,2057.5,2056.7,0.46373229]
[1771006978959,1.03667417,2057.4,2056.7,0.46373229]
[1771006979167,1.21708526,2057.5,2056.7,0.46373229]
[1771006979372,1.03677342,2057.4,2056.7,0.46373229]
[1771006979662,0.002,2057.5,2056.7,0.46373229]
[1771006980593,0.002,2057.5,2056.8,0.46373229]
[1771006980792,0.002,2057.7,2057.2,0.46606201]
[1771006981693,0.002,2057.7,2057.3,1.14]
[1771006982872,0.002,2057.7,2057.4,1.21512588]
[1771006983991,0.002,2057.9,2057.4,1.68118789]
[1771006984286,0.002,2058.3,2057.5,0.46606201]
[1771006985488,0.002,2058.3,2057.7,0.46606201]
[1771006985688,0.002,2058.3,2057.8,1.142]
[1771006987393,0.002,2058.3,2057.9,1.68089266]
[1771006988173,0.002,2058.3,2057.9,1.21483065]
[1771006988375,0.002,2058.3,2057.8,2.35684572]
[1771006988572,0.002,2058.3,2057.8,2.82290773]
[1771006989300,0.002,2058.3,2057.8,2.35684572]
[1771006991486,0.002,2058.3,2057.8,2.82290773]
[1771006992014,0.002,2058.5,2057.9,0.46606201]
[1771006992805,0.002,2058.5,2058.1,0.46606201]
[1771006993013,0.002,2058.8,2058.3,0.46606201]
[1771006993211,0.002,2058.8,2058.3,1.34206201]
[1771006993588,0.002,2058.8,2058.4,0.46606201]
[1771006993791,1.2159816,2059.4,2058.4,0.46606201]
[1771006993989,0.002,2059.4,2058.4,0.46606201]
[1771006994184,0.002,2059.4,2058.3,0.876]
[1771006994185,0.002,2059.4,2058.6,0.46606201]
[1771006994395,0.002,2059.4,2058.8,0.46606201]
[1771006994604,1.69419066,2060.1,2058.8,0.46606201]
[1771006994800,1.463824,2060.2,2059.0,0.46606201]
[1771006995108,0.25030961,2060.2,2059.2,0.46606201]
[1771006995510,1.46379236,2060.2,2059.2,0.46606201]
[1771006995814,1.94442495,2060.2,2059.3,2.023]
[1771006996584,0.48063259,2060.1,2058.9,1.21424061]
[1771006996797,1.69422482,2060.0,2059.1,1.21412267]
[1771006998390,0.002,2059.2,2059.1,1.21412267]
[1771006998608,1.69422482,2060.0,2059.1,1.21412267]
[1771006998993,0.002,2059.4,2059.1,1.21412267]
[1771007000015,0.002,2059.4,2059.0,3.23615429]
[1771007000408,0.002,2059.4,2059.0,2.022]
[1771007000612,0.002,2059.4,2059.0,3.236172]
[1771007000995,0.002,2059.4,2059.0,2.022]
[1771007001598,0.48263259,2059.4,2059.0,2.022]
[1771007002394,0.48263259,2059.4,2058.8,0.739]
[1771007002919,0.002,2059.4,2058.8,0.739]
[1771007003122,0.002,2059.4,2058.9,1.21424061]
[1771007004823,0.002,2059.4,2059.0,1.15]
[1771007005522,1.2159458,2059.4,2059.0,1.15]
[1771007005902,0.48063259,2059.3,2059.0,1.15]
[1771007006101,0.48063259,2059.3,2058.5,1.15]
[1771007007115,0.48063259,2059.3,2058.1,1.21471259]
[1771007007303,0.48063259,2059.1,2058.0,2.36477013]
[1771007007510,0.48063259,2058.9,2058.0,1.15]
[1771007007696,0.48063259,2058.9,2058.0,2.36476796]
[1771007007899,1.21418164,2059.0,2058.0,2.36476796]
[1771007008099,1.21418164,2059.0,2058.0,2.83082997]
[1771007008426,0.48063259,2058.8,2058.0,2.36476796]
[1771007009322,0.48063259,2058.8,2058.0,1.15]
[1771007009523,1.21435857,2058.7,2058.0,1.15]
[1771007010003,1.21435857,2058.7,2058.0,2.36476744]
[1771007010933,1.21435857,2058.7,2058.0,1.15]
[1771007011100,1.21435857,2058.7,2058.0,2.36476998]
[1771007011527,1.21435857,2058.7,2058.2,0.001]
[1771007012521,1.66822536,2058.7,2058.2,0.001]
[1771007013135,1.03468533,2058.6,2058.2,0.001]
[1771007013304,1.03468533,2058.5,2058.2,0.001]
[1771007013511,1.21435857,2058.7,2058.2,0.001]
[1771007013702,1.0349945,2058.6,2058.2,0.001]
[1771007013899,1.21436571,2058.7,2058.2,0.001]
[1771007014141,1.03520816,2058.6,2058.2,0.001]
[1771007014311,1.03520816,2058.5,2058.2,0.001]
[1771007014633,0.45386679,2058.6,2058.2,0.001]
[1771007014840,1.0354395,2058.5,2058.2,0.001]
[1771007015012,0.45386679,2058.6,2058.2,0.001]
[1771007015216,1.03544011,2058.5,2058.2,0.001]
[1771007015533,0.45386679,2058.6,2058.2,0.001]
[1771007015721,1.21453556,2058.4,2058.2,0.001]
[1771007017729,4.85790777,2058.5,2058.2,0.001]
[1771007017730,1.21447656,2058.5,2058.2,0.001]
[1771007017898,1.03450755,2058.4,2058.2,0.001]
[1771007018101,1.21447656,2058.5,2058.0,1.149]
[1771007018102,1.68528213,2058.5,2058.0,1.149]
[1771007018305,1.03435971,2058.4,2058.0,1.149]
[1771007018539,1.68528213,2058.5,2058.0,1.149]
[1771007018832,1.03435764,2058.4,2058.0,1.149]
[1771007019034,1.68528213,2058.5,2058.0,1.149]
[1771007019240,1.03440405,2058.4,2058.0,1.149]
[1771007019410,1.68528213,2058.5,2058.0,1.149]
[1771007019605,1.03430231,2058.4,2058.0,1.149]
[1771007019939,1.68528213,2058.5,2058.0,1.149]
[1771007020114,1.21459456,2058.3,2058.0,1.149]
[1771007022245,5.32898517,2058.4,2058.0,1.149]
[1771007022458,1.03403952,2058.3,2058.0,1.149]
[1771007022752,5.32898517,2058.4,2058.0,1.149]
[1771007022954,1.03403642,2058.3,2058.0,1.149]
[1771007023158,0.47080557,2058.3,2057.8,0.001]
[1771007023339,1.50453233,2058.2,2057.8,0.001]
[1771007023538,0.47080557,2058.2,2057.8,0.001]
[1771007023718,1.50445076,2058.1,2057.8,0.001]
[1771007023917,1.21453556,2058.4,2057.8,1.21588603]
[1771007024151,1.03419054,2058.3,2057.8,0.001]
[1771007024314,1.21465358,2058.2,2058.0,0.001]
[1771007025322,1.21464315,2058.3,2058.0,0.001]
[1771007026129,4.85772101,2058.6,2058.0,0.001]
[1771007026130,1.21447055,2058.6,2058.0,0.001]
[1771007026335,1.03485117,2058.5,2058.0,0.001]
[1771007026645,1.03485117,2058.4,2058.0,0.001]
[1771007026852,1.21447055,2058.6,2058.0,0.001]
[1771007027218,1.03490379,2058.5,2058.0,0.001]
[1771007027421,1.03490379,2058.4,2058.0,0.001]
[1771007027749,1.21447055,2058.6,2058.0,0.001]
[1771007027932,1.03547759,2058.5,2058.0,0.001]
[1771007028138,1.03547759,2058.4,2058.0,0.001]
[1771007028337,1.03547759,2058.3,2058.0,0.001]
[1771007028533,1.21453093,2058.5,2058.0,0.001]
[1771007028737,1.03595447,2058.4,2058.0,0.001]
[1771007028937,1.03595447,2058.3,2058.0,0.001]
[1771007029156,1.21453093,2058.5,2058.0,0.001]
[1771007029336,1.03650632,2058.4,2058.0,0.001]
[1771007029540,1.03650632,2058.3,2058.0,0.001]
[1771007029743,1.21453093,2058.5,2058.0,0.001]
[1771007029942,1.03655929,2058.4,2058.0,0.001]
[1771007030238,1.21465358,2058.2,2058.0,0.001]
[1771007030451,1.03655929,2058.1,2057.8,0.001]
[1771007031945,1.03655929,2058.1,2057.2,1.66643381]
[1771007031946,2.59736486,2058.1,2057.2,1.66643381]
[1771007032149,1.03655929,2058.0,2057.3,0.45122724]
[1771007032554,1.03655929,2058.0,2057.4,1.21512588]
[1771007032854,2.25133259,2058.0,2057.4,1.21512588]
[1771007033052,1.03655929,2057.9,2057.4,1.21512588]
[1771007033348,1.21477213,2058.0,2057.4,1.21512588]
[1771007033544,1.03945303,2057.9,2057.4,1.21512588]
[1771007033751,1.09,2058.1,2057.4,1.66635312]
[1771007033946,1.21467333,2058.2,2057.4,1.66635312]
[1771007034155,1.21467333,2058.2,2057.4,1.21512588]
[1771007034452,1.21467333,2058.2,2057.4,1.66635312]
[1771007035438,2.7763159,2058.5,2057.5,0.45122724]
[1771007035645,2.7763159,2058.5,2057.6,1.59622724]
[1771007035957,2.7763159,2058.5,2057.7,0.45122724]
[1771007036257,0.002,2057.9,2057.7,0.45122724]
[1771007036427,0.002,2057.9,2057.6,1.145]
[1771007036857,0.002,2057.9,2057.6,2.3599882]
[1771007037271,0.002,2057.9,2057.6,2.81121544]
[1771007037445,0.002,2058.1,2057.6,2.81121544]
[1771007037646,0.002,2058.1,2057.7,0.45122724]
[1771007039140,0.002,2058.1,2057.7,1.21490191]
[1771007040262,0.002,2058.1,2057.6,3.23596448]
[1771007040462,0.002,2058.1,2057.6,3.23600394]
[1771007042272,0.002,2058.1,2057.4,0.001]
[1771007042273,0.47931285,2058.1,2057.4,0.001]
[1771007042456,0.47931285,2058.1,2057.5,0.499]
[1771007043374,1.21477162,2058.0,2057.5,0.499]
[1771007045480,1.21477162,2058.0,2057.5,1.71406576]
[1771007045641,1.21477162,2058.0,2057.5,0.499]
[1771007046280,1.69208447,2058.0,2057.5,0.499]
[1771007046575,1.21671358,2058.1,2057.5,1.71405221]
[1771007046954,1.21671358,2058.1,2057.5,0.499]
[1771007047151,1.69402643,2058.1,2057.5,0.499]
[1771007047357,0.47731285,2058.0,2057.5,0.499]
[1771007047564,1.6921435,2057.9,2057.5,0.499]
[1771007047768,0.47731285,2057.8,2057.4,0.001]
[1771007048374,0.002,2057.9,2057.4,0.001]
[1771007048874,0.47931285,2057.9,2057.4,0.001]
[1771007049573,0.47731285,2057.7,2057.2,1.149]
[1771007049872,0.47731285,2057.7,2057.1,0.001]
[1771007050072,1.04163296,2057.6,2056.9,0.001]
[1771007050371,1.51894581,2057.5,2056.9,0.001]
[1771007050577,1.51894581,2057.4,2056.9,0.001]
[1771007050781,1.04163296,2057.3,2056.9,0.001]
[1771007050943,1.04163296,2057.2,2056.9,0.001]
[1771007051147,1.04163296,2057.1,2056.9,0.001]
[1771007051390,1.04163296,2057.0,2056.9,0.001]
[1771007051979,1.04163296,2057.0,2056.4,0.876]
[1771007051980,2.25699513,2057.0,2056.4,0.876]
[1771007052170,1.04163296,2056.9,2056.4,2.09171248]
[1771007052368,1.2153789,2057.0,2056.4,0.876]
[1771007052676,1.03844133,2056.9,2056.5,0.48162707]
[1771007052875,1.21530911,2057.1,2056.5,0.48162707]
[1771007053051,1.03846553,2057.0,2056.5,0.48162707]
[1771007053252,1.21529121,2057.2,2056.5,0.48162707]
[1771007053476,1.03789928,2057.1,2056.5,0.48162707]
[1771007053780,1.03789928,2057.0,2056.5,1.69728069]
[1771007053970,1.03789928,2056.9,2056.5,1.69728069]
[1771007054278,1.21536105,2057.1,2056.5,1.21565362]
[1771007054470,1.03690337,2057.0,2056.5,1.21565362]
[1771007054780,1.21536105,2057.1,2056.5,1.21565362]
[1771007054981,1.036896,2057.0,2056.5,1.21565362]
[1771007055176,1.21512598,2057.4,2056.6,0.48162707]
[1771007055356,1.03652613,2057.3,2056.6,0.48162707]
[1771007055562,1.03652613,2057.2,2056.6,0.48162707]
[1771007055877,1.21512598,2057.4,2056.7,1.69716652]
[1771007055878,1.03652613,2057.1,2056.7,1.69716652]
[1771007056190,5.33736763,2057.6,2056.7,1.69716652]
[1771007056191,5.44150642,2057.9,2056.8,1.63162707]
[1771007056389,30.0,2057.7,2056.9,0.48162707]
[1771007057151,0.47731285,2057.6,2056.8,1.15]
[1771007057753,1.21506682,2057.5,2056.8,1.15]
[1771007057966,0.47731285,2057.4,2056.8,1.15]
[1771007058471,0.47731285,2057.4,2056.8,2.36548005]
[1771007058662,0.47731285,2057.4,2056.8,1.15]
[1771007059179,1.21506682,2057.5,2056.8,2.36547805]
[1771007060262,0.47731285,2057.5,2056.8,1.15]
[1771007060958,0.47731285,2057.5,2057.0,0.001]
[1771007061170,0.47731285,2057.7,2057.0,0.001]
[1771007061356,2.3088769,2057.9,2057.0,0.48262707]
[1771007061975,1.2168769,2057.9,2057.0,0.48262707]
[1771007062165,0.002,2057.9,2057.2,0.48162707]
[1771007062372,0.002,2057.9,2057.4,0.48162707]
[1771007063276,0.002,2057.9,2057.3,1.149]
[1771007063873,0.47931285,2057.9,2057.0,1.69796064]
[1771007064089,0.47931285,2057.9,2057.0,0.001]
[1771007064257,1.69220253,2057.8,2057.0,1.21636102]
[1771007064458,1.69220253,2057.8,2057.0,0.001]
[1771007064858,1.21488968,2057.8,2057.0,0.48262707]
[1771007066359,0.002,2057.9,2057.1,1.21530309]
[1771007066658,0.47931285,2057.9,2057.1,1.21530309]
[1771007066862,0.47931285,2057.9,2057.0,0.001]
[1771007067062,0.47931285,2057.9,2057.0,1.21635026]
[1771007067271,0.47931285,2057.9,2057.0,0.001]
[1771007067689,0.47931285,2057.9,2057.0,1.21635688]
[1771007068060,0.47931285,2057.9,2057.0,0.001]
[1771007068485,1.69220253,2057.8,2057.0,0.001]
[1771007068786,0.47731285,2057.7,2057.0,0.001]
[1771007069690,2.30788968,2057.8,2057.0,0.001]
[1771007069862,1.21488968,2057.8,2057.0,0.48262707]
[1771007070592,4.86155875,2057.9,2057.1,1.21530309]
[1771007073192,4.86155875,2057.9,2057.2,0.46759558]
[1771007073193,0.002,2057.7,2057.2,0.46759558]
[1771007074294,0.002,2057.7,2057.2,1.61359558]
[1771007074598,0.002,2057.7,2057.2,1.146]
[1771007074977,0.002,2057.7,2057.2,2.36124345]
[1771007076398,0.002,2057.7,2057.2,1.146]
[1771007076604,0.002,2057.7,2057.2,2.36124383]
[1771007078113,0.002,2057.7,2057.2,1.146]
[1771007078392,0.002,2057.7,2057.2,2.3612357]
[1771007078975,0.002,2057.7,2057.2,1.146]
[1771007079301,0.002,2057.7,2057.2,2.36123759]
[1771007080215,0.002,2057.7,2057.2,1.146]
[1771007083203,0.002,2057.7,2057.2,2.36123902]
[1771007083813,0.002,2058.1,2057.3,0.47184027]
[1771007084014,1.21671515,2058.1,2057.3,0.47184027]
[1771007084183,0.002,2058.1,2057.4,1.21512588]
[1771007084385,0.002,2058.1,2057.4,1.68696615]
[1771007085880,0.002,2057.9,2057.4,1.68696615]
[1771007086684,0.002,2057.9,2057.3,1.21515552]
[1771007087994,0.002,2057.9,2057.2,2.83303569]
[1771007088318,0.002,2057.9,2057.3,0.47184027]
[1771007088692,0.002,2057.9,2057.4,1.21512588]
[1771007091413,0.002,2057.9,2057.4,1.68696615]
[1771007093288,0.49544405,2057.9,2057.0,0.001]
[1771007093491,1.21687438,2057.9,2057.2,0.47184027]
[1771007095521,0.002,2057.9,2057.3,1.21518495]
[1771007095742,0.002,2057.9,2057.2,1.68703951]
[1771007097043,0.49544405,2057.9,2057.1,2.37126861]
[1771007097552,1.21488968,2057.8,2057.4,0.001]
[1771007097726,0.002,2057.7,2057.4,0.001]
[1771007098550,0.49544405,2057.7,2057.4,0.001]
[1771007099652,1.71043863,2057.7,2057.4,0.001]
[1771007100318,0.002,2057.9,2057.4,0.001]
[1771007100515,1.21683941,2057.9,2057.4,0.001]
[1771007101724,0.48201986,2057.9,2057.4,0.001]
[1771007103820,0.48001986,2057.7,2057.4,0.001]
[1771007104221,1.21488968,2057.8,2057.4,0.001]
[1771007104429,1.21687667,2057.9,2057.4,0.001]
[1771007105323,0.48001986,2057.8,2057.4,0.001]
[1771007105531,0.48001986,2057.8,2057.1,1.157]
[1771007105935,0.48001986,2057.6,2057.1,0.001]
[1771007106324,4.86179491,2057.9,2057.2,0.49250618]
[1771007106325,0.002,2057.9,2057.2,0.49250618]
[1771007106530,0.002,2057.9,2057.3,0.49250618]
[1771007106928,1.21683236,2057.9,2057.3,0.49250618]
[1771007107135,1.69685222,2057.9,2057.2,1.153]
[1771007107535,1.21683236,2057.9,2057.1,1.708809]
[1771007107834,1.21683236,2057.9,2057.2,1.153]
[1771007108040,0.002,2057.9,2057.3,1.21518495]
[1771007108354,0.002,2057.9,2057.2,1.153]
[1771007109254,0.002,2057.9,2057.2,2.86074057]
[1771007109453,0.48201986,2057.9,2057.2,1.153]
[1771007110231,1.21488968,2057.8,2057.2,1.153]
[1771007110844,1.21488968,2057.8,2057.5,0.001]
[1771007111168,0.002,2057.7,2057.5,0.001]
[1771007115173,0.002,2057.7,2057.3,0.001]
[1771007118048,0.48201986,2057.7,2057.3,0.001]
[1771007118954,0.48001986,2057.5,2057.1,0.001]
[1771007119877,0.48001986,2057.5,2056.9,0.001]
[1771007120855,0.48001986,2057.3,2056.9,0.001]
[1771007122874,1.21524402,2057.2,2056.9,0.001]
[1771007123802,1.21524402,2057.2,2057.1,0.001]
[1771007123978,1.21524402,2057.2,2056.9,0.001]
[1771007124180,0.48001986,2057.4,2056.9,0.001]
[1771007125295,0.48001986,2057.2,2056.8,0.001]
[1771007125617,0.48001986,2057.1,2056.6,0.001]
[1771007127195,1.69538203,2057.0,2056.6,0.001]
[1771007127608,1.69538203,2057.0,2056.4,0.001]
[1771007127809,0.48001986,2056.9,2056.4,0.001]
[1771007129384,1.21548035,2056.8,2056.4,0.001]
[1771007129783,0.48001986,2056.7,2056.4,0.001]
[1771007130211,0.48001986,2056.7,2056.1,0.001]
[1771007131088,0.48001986,2056.7,2056.0,0.001]
[1771007131285,1.21548035,2056.8,2056.1,0.45368008]
[1771007131494,1.21530309,2057.1,2056.1,0.45368008]
[1771007131997,1.70092287,2057.1,2056.1,0.45368008]
[1771007132485,1.59161978,2057.0,2056.1,0.45368008]
[1771007132690,0.48561978,2056.9,2056.1,0.45368008]
[1771007133513,1.70110013,2056.8,2056.0,0.001]
[1771007133690,0.48561978,2056.7,2056.0,0.001]
[1771007133896,1.106,2056.6,2056.0,0.001]
[1771007134493,1.106,2056.6,2056.0,1.67062606]
[1771007134697,1.106,2056.6,2056.0,0.45468008]
[1771007135524,2.32164697,2056.6,2056.3,0.001]
[1771007135694,2.32136217,2057.0,2056.3,0.45468008]
[1771007137920,1.106,2057.0,2056.3,0.45468008]
[1771007138097,0.002,2057.1,2056.4,0.4530468]
[1771007139892,0.002,2057.1,2056.6,0.4530468]
[1771007140922,0.002,2057.1,2056.5,1.21565767]
[1771007141111,0.002,2057.1,2056.5,1.66870447]
[1771007141515,0.002,2057.1,2056.6,0.4530468]
[1771007142252,0.002,2057.1,2056.7,1.66858625]
[1771007142557,0.002,2057.1,2056.8,0.4530468]
[1771007144439,0.002,2057.1,2056.8,1.66849353]
[1771007145213,0.002,2057.1,2056.9,0.4530468]
[1771007145842,0.002,2057.1,2056.9,1.6010468]
[1771007146942,0.002,2057.1,2056.9,2.81644759]
[1771007147246,0.002,2057.1,2056.9,2.36340079]
[1771007147456,0.002,2057.1,2056.9,1.148]
[1771007147745,0.002,2057.1,2056.9,2.36341339]
[1771007148339,0.002,2057.1,2056.9,1.148]
[1771007148736,0.002,2057.3,2057.0,0.4530468]
[1771007148964,0.002,2057.7,2057.0,0.4530468]
[1771007149267,0.002,2057.7,2057.2,0.4530468]
[1771007149431,0.002,2057.7,2057.3,1.6050468]
[1771007149753,0.002,2057.7,2057.0,0.4530468]
[1771007149922,0.45409977,2057.7,2056.9,1.152]
[1771007151651,1.21695467,2057.7,2057.1,0.4530468]
[1771007152053,1.21695467,2057.7,2057.0,1.21536217]
[1771007152353,0.002,2057.7,2057.1,0.4530468]
[1771007152531,1.21694907,2057.7,2057.1,0.4530468]
[1771007154050,0.002,2057.7,2057.2,1.21524402]
[1771007155264,0.002,2057.7,2057.1,0.4530468]
[1771007155451,0.002,2057.7,2057.0,1.21532118]
[1771007155971,0.002,2057.7,2056.9,6.46661482]
[1771007155972,0.002,2057.7,2056.9,2.82043408]
[1771007156130,1.21500777,2057.6,2056.9,2.82043408]
[1771007157557,0.002,2057.7,2057.0,0.4530468]
[1771007158257,0.002,2057.7,2057.1,1.66834989]